bitfinex/quotes_BTCUSD_20250129
["timestamp","ask_amount","ask_price","bid_price","bid_amount"]
[1738167885208,8.3e-07,101950.0,101940.0,1.91670388]
[1738167885625,8.3e-07,101950.0,101940.0,1.90566388]
[1738167885888,8.3e-07,101950.0,101940.0,1.91670388]
[1738167887409,8.3e-07,101950.0,101940.0,1.91470388]
[1738167887614,8.3e-07,101950.0,101940.0,1.91870388]
[1738167888215,8.3e-07,101950.0,101940.0,1.91170388]
[1738167888623,8.3e-07,101950.0,101940.0,1.92070388]
[1738167889479,8.3e-07,101950.0,101940.0,1.89770388]
[1738167890091,8.3e-07,101950.0,101940.0,1.92070388]
[1738167890292,8.3e-07,101950.0,101940.0,1.95547422]
[1738167891088,8.3e-07,101950.0,101940.0,1.97547422]
[1738167891726,8.3e-07,101950.0,101940.0,1.95070388]
[1738167892082,8.3e-07,101950.0,101940.0,1.99898408]
[1738167894377,8.3e-07,101950.0,101940.0,1.97421374]
[1738167894579,8.3e-07,101950.0,101940.0,3.47421374]
[1738167894821,0.01490662,101980.0,101970.0,0.74265372]
[1738167895038,0.01539001,101980.0,101970.0,1.44958211]
[1738167896323,0.01539001,101980.0,101970.0,1.33311511]
[1738167896600,0.01539001,101980.0,101970.0,1.21285511]
[1738167896844,0.01539001,101980.0,101970.0,1.20387025]
[1738167897058,0.01539001,101980.0,101970.0,1.08965925]
[1738167897270,0.01539001,101980.0,101970.0,1.05920102]
[1738167897882,0.01539001,101980.0,101970.0,1.06020102]
[1738167900003,0.01539001,101980.0,101970.0,1.0701791]
[1738167900422,0.06289001,101980.0,101970.0,0.84888516]
[1738167900636,0.14019001,101980.0,101970.0,0.751642]
[1738167901856,0.14019001,101980.0,101970.0,0.84888516]
[1738167902919,0.14019001,101980.0,101970.0,0.485602]
[1738167903120,0.14019001,101980.0,101970.0,0.496602]
[1738167903346,0.28850275,101980.0,101970.0,0.0885]
[1738167903565,0.28727701,101980.0,101970.0,0.005]
[1738167903995,0.28727701,101980.0,101970.0,0.004]
[1738167904472,0.28727701,101980.0,101970.0,0.005]
[1738167904688,0.28727701,101980.0,101970.0,0.001]
[1738167904898,0.28727701,101980.0,101970.0,0.147102]
[1738167905116,0.28727701,101980.0,101970.0,0.00129862]
[1738167905582,0.28741921,101980.0,101970.0,0.00129862]
[1738167906882,0.0526,101950.0,101940.0,0.00029862]
[1738167907105,0.40824902,101950.0,101940.0,0.00029862]
[1738167907535,0.41824902,101950.0,101940.0,0.00029862]
[1738167908436,0.41824902,101950.0,101940.0,0.00729862]
[1738167908655,0.41824902,101950.0,101940.0,0.00029862]
[1738167908870,0.279159,101930.0,101920.0,0.00029883]
[1738167910281,0.279159,101930.0,101920.0,0.00034716]
[1738167910702,0.279159,101930.0,101920.0,0.00134716]
[1738167911704,0.279159,101930.0,101920.0,0.00434716]
[1738167914647,0.14173667,101930.0,101920.0,0.15152116]
[1738167914838,0.00973667,101930.0,101920.0,0.71004018]
[1738167915036,0.662383,101950.0,101920.0,0.71004018]
[1738167915303,0.466208,101950.0,101930.0,0.343365]
[1738167915665,0.662392,101950.0,101930.0,0.343365]
[1738167916329,0.662392,101950.0,101930.0,0.147154]
[1738167916545,0.858578,101950.0,101930.0,0.147154]
[1738167916755,0.466208,101950.0,101930.0,0.34336]
[1738167916965,0.466208,101950.0,101930.0,0.539563]
[1738167917191,0.466208,101950.0,101930.0,0.354557]
[1738167917583,0.466208,101950.0,101930.0,0.343357]
[1738167917584,0.662391,101950.0,101930.0,0.343357]
[1738167917799,0.47581025,101950.0,101930.0,0.354517]
[1738167918169,0.47581025,101950.0,101930.0,0.550729]
[1738167918607,0.27963525,101950.0,101930.0,0.550729]
[1738167918755,0.47581025,101950.0,101930.0,0.354517]
[1738167918960,0.47581025,101950.0,101930.0,0.35481583]
[1738167919388,0.0756,101960.0,101950.0,0.14713]
[1738167919648,0.0478,101970.0,101950.0,0.543291]
[1738167919854,0.270503,101970.0,101950.0,0.543291]
[1738167920061,0.46664,101970.0,101950.0,0.739457]
[1738167920267,0.662785,101970.0,101950.0,0.543291]
[1738167920469,0.515682,101970.0,101950.0,0.543291]
[1738167920689,0.662794,101970.0,101950.0,0.543294]
[1738167921343,0.466649,101970.0,101950.0,0.750619]
[1738167921541,0.662793,101970.0,101950.0,0.750619]
[1738167921742,0.662793,101970.0,101950.0,0.554454]
[1738167922427,0.1234,101970.0,101950.0,0.750628]
[1738167922626,0.270507,101970.0,101950.0,0.750628]
[1738167922862,0.662779,101970.0,101950.0,0.554454]
[1738167923062,0.858927,101970.0,101950.0,0.354454]
[1738167923476,0.662779,101970.0,101950.0,0.354454]
[1738167924717,0.466643,101970.0,101950.0,0.550628]
[1738167925088,0.66279,101970.0,101950.0,0.550628]
[1738167925286,0.147116,101960.0,101950.0,0.15829]
[1738167926118,0.147116,101960.0,101940.0,0.68960416]
[1738167926328,0.539436,101960.0,101940.0,0.739499]
[1738167926481,0.42653709,101950.0,101930.0,1.15947683]
[1738167926685,0.42653709,101950.0,101930.0,1.45293199]
[1738167926686,0.425311,101950.0,101930.0,1.45293199]
[1738167927043,0.147145,101940.0,101930.0,0.76711283]
[1738167927331,0.147145,101940.0,101930.0,0.50879883]
[1738167927740,0.147145,101940.0,101930.0,0.65595783]
[1738167927944,0.147145,101940.0,101930.0,0.50879883]
[1738167928154,0.147145,101940.0,101930.0,0.40879883]
[1738167928587,0.14837129,101940.0,101930.0,0.08479883]
[1738167928930,0.147145,101940.0,101930.0,0.08479883]
[1738167929134,0.147145,101940.0,101930.0,0.08679883]
[1738167929549,0.147145,101940.0,101930.0,0.08779883]
[1738167929941,0.147145,101940.0,101930.0,0.08679883]
[1738167930184,0.147145,101940.0,101930.0,0.08379883]
[1738167930394,0.147145,101940.0,101930.0,0.00029883]
[1738167930599,0.14837134,101940.0,101930.0,0.00329883]
[1738167930802,0.14837134,101940.0,101930.0,0.00029883]
[1738167931891,0.14837134,101940.0,101930.0,0.00129883]
[1738167932094,0.53208018,101950.0,101930.0,0.14845783]
[1738167932302,0.147145,101940.0,101930.0,0.14745783]
[1738167932746,0.147145,101940.0,101930.0,0.00029883]
[1738167933061,0.147145,101940.0,101930.0,0.14745783]
[1738167933889,0.33590418,101950.0,101930.0,0.14745783]
[1738167934100,0.67922618,101950.0,101930.0,0.54366083]
[1738167934311,0.87541318,101950.0,101930.0,0.54366083]
[1738167934725,0.147145,101940.0,101930.0,0.34745783]
[1738167935839,0.67923018,101950.0,101930.0,0.54366183]
[1738167936066,0.87541618,101950.0,101930.0,0.54366183]
[1738167936290,0.43524618,101950.0,101940.0,0.147145]
[1738167936495,0.43524618,101950.0,101940.0,0.25842086]
[1738167936496,0.0001423,101950.0,101940.0,0.25842086]
[1738167936705,0.0001423,101950.0,101940.0,0.35842086]
[1738167936914,0.0001423,101950.0,101940.0,0.347145]
[1738167938337,0.1472723,101950.0,101940.0,0.347145]
[1738167938514,0.3446774,101950.0,101930.0,0.93330499]
[1738167938673,0.3434513,101950.0,101930.0,1.03330499]
[1738167938888,0.3434513,101950.0,101940.0,0.1]
[1738167939090,0.1472723,101950.0,101940.0,0.247145]
[1738167940486,0.14849844,101950.0,101940.0,0.247145]
[1738167941045,0.1472723,101950.0,101940.0,0.247145]
[1738167944194,0.0001423,101950.0,101940.0,0.347145]
[1738167944453,0.1472723,101950.0,101940.0,0.347145]
[1738167944871,0.0001423,101950.0,101940.0,0.347145]
[1738167945306,0.0001423,101950.0,101940.0,0.45842086]
[1738167945864,0.0001423,101950.0,101940.0,0.75546402]
[1738167948793,0.0001423,101950.0,101940.0,0.397145]
[1738167949000,0.1472723,101950.0,101940.0,0.258345]
[1738167949806,0.1472723,101950.0,101940.0,0.247145]
[1738167949963,0.3434463,101950.0,101940.0,0.1]
[1738167950173,0.3434463,101950.0,101940.0,0.247145]
[1738167950605,0.1472723,101950.0,101940.0,0.247145]
[1738167950973,0.54085544,101950.0,101930.0,0.74729783]
[1738167951182,0.3434473,101950.0,101940.0,0.147145]
[1738167953082,0.0001423,101950.0,101940.0,0.147145]
[1738167953505,0.1472723,101950.0,101940.0,0.147145]
[1738167953887,0.0001423,101950.0,101940.0,0.147145]
[1738167954107,0.0001423,101950.0,101940.0,1.94900388]
[1738167954307,0.0001423,101950.0,101940.0,1.97955135]
[1738167955791,0.0001423,101950.0,101940.0,1.98255135]
[1738167956357,0.0001423,101950.0,101940.0,1.98355135]
[1738167956551,0.0001423,101950.0,101940.0,1.40738735]
[1738167956758,0.0001423,101950.0,101940.0,2.23115435]
[1738167957691,0.0001423,101950.0,101940.0,1.57682635]
[1738167957825,0.0001423,101950.0,101940.0,1.54733735]
[1738167958022,0.0001423,101950.0,101940.0,1.27311149]
[1738167958437,0.0001423,101950.0,101940.0,1.28459149]
[1738167958988,0.0001423,101950.0,101940.0,1.25404402]
[1738167960532,0.0001423,101950.0,101940.0,1.28456049]
[1738167963687,0.0001423,101950.0,101940.0,1.04888463]
[1738167964001,0.0001423,101950.0,101940.0,1.12964402]
[1738167964639,0.0001423,101950.0,101940.0,0.91816402]
[1738167964854,0.1472723,101950.0,101940.0,0.08898]
[1738167965135,0.1484984,101950.0,101940.0,0.00548]
[1738167965350,0.2230723,101950.0,101940.0,0.00548]
[1738167965566,0.0759423,101950.0,101940.0,0.151625]
[1738167965777,0.2230723,101950.0,101940.0,0.151625]
[1738167965980,0.2230723,101950.0,101940.0,0.00448]
[1738167966290,0.2230723,101950.0,101940.0,0.151625]
[1738167966512,0.2230723,101950.0,101940.0,0.14892383]
[1738167966714,0.2230723,101950.0,101940.0,0.00177883]
[1738167967866,0.32031546,101950.0,101940.0,0.00177883]
[1738167968083,0.43159132,101950.0,101940.0,0.00177883]
[1738167968296,0.32031546,101950.0,101940.0,0.00177883]
[1738167968506,0.2230723,101950.0,101940.0,0.00177883]
[1738167968726,0.2230723,101950.0,101940.0,0.14892383]
[1738167968948,0.0001423,101950.0,101940.0,0.24892383]
[1738167969177,0.0001423,101950.0,101940.0,0.55744285]
[1738167970626,0.0001423,101950.0,101940.0,0.34616699]
[1738167971036,0.0001423,101950.0,101940.0,0.34892383]
[1738167971284,0.1472723,101950.0,101940.0,0.34892383]
[1738167971518,0.0001423,101950.0,101940.0,0.34892383]
[1738167971735,0.1472723,101950.0,101940.0,0.34892383]
[1738167972156,0.0001423,101950.0,101940.0,0.34892383]
[1738167972365,0.0001423,101950.0,101940.0,0.55744285]
[1738167974153,0.0001423,101950.0,101940.0,0.44616699]
[1738167975400,0.1472723,101950.0,101940.0,0.34892383]
[1738167975617,0.1472723,101950.0,101940.0,0.24892383]
[1738167976037,0.1472723,101950.0,101940.0,0.10177883]
[1738167976262,0.0001423,101950.0,101940.0,0.24892383]
[1738167976483,0.1472723,101950.0,101940.0,0.24892383]
[1738167978840,0.0001423,101950.0,101940.0,0.24892383]
[1738167979023,0.0001423,101950.0,101940.0,0.34616699]
[1738167980584,0.0001423,101950.0,101940.0,0.45744285]
[1738167981394,0.0001423,101950.0,101940.0,0.55744285]
[1738167982384,0.0001423,101950.0,101940.0,0.94891871]
[1738167982890,0.0001423,101950.0,101940.0,0.86819757]
[1738167983076,0.0001423,101950.0,101940.0,0.97947343]
[1738167983848,0.0001423,101950.0,101940.0,1.00247343]
[1738167984156,0.0001423,101950.0,101940.0,2.44381343]
[1738167984376,0.0001423,101950.0,101940.0,2.25404957]
[1738167984792,0.0001423,101950.0,101940.0,2.15404957]
[1738167984997,0.0001423,101950.0,101940.0,1.85441257]
[1738167985198,0.0001423,101950.0,101940.0,1.73579757]
[1738167985447,0.0001423,101950.0,101940.0,1.88701657]
[1738167985662,0.0001423,101950.0,101940.0,2.00129243]
[1738167986508,0.0001423,101950.0,101940.0,2.00029243]
[1738167986712,0.0001423,101950.0,101940.0,2.00229243]
[1738167986924,3e-07,101950.0,101940.0,2.01229243]
[1738167987136,3e-07,101950.0,101940.0,1.88507343]
[1738167987556,3e-07,101950.0,101940.0,1.88207343]
[1738167987941,3e-07,101950.0,101940.0,1.88807343]
[1738167988216,3e-07,101950.0,101940.0,1.88007343]
[1738167988402,3e-07,101950.0,101940.0,1.88207343]
[1738167988604,0.01504882,101980.0,101970.0,0.623202]
[1738167988781,0.01504882,101980.0,101970.0,4.50143674]
[1738167989159,0.01504882,101980.0,101970.0,4.63935974]
[1738167989333,0.01504882,101980.0,101970.0,1.5546516]
[1738167989561,0.01504882,101980.0,101970.0,4.0302416]
[1738167989696,0.01553221,101980.0,101970.0,2.5957826]
[1738167990064,0.01553221,101980.0,101970.0,2.4594046]
[1738167990398,0.01553221,101980.0,101970.0,2.3775036]
[1738167991320,0.01553221,101980.0,101970.0,2.3805036]
[1738167991518,0.01553221,101980.0,101970.0,2.3815036]
[1738167991860,0.01553221,101980.0,101970.0,3.2491036]
[1738167993326,0.01553221,101980.0,101970.0,3.2481036]
[1738167993961,0.01553221,101980.0,101970.0,2.3775036]
[1738167994344,0.01553221,101980.0,101970.0,3.22354888]
[1738167994981,0.01553221,101980.0,101970.0,3.22654888]
[1738167995556,0.01553221,101980.0,101970.0,3.22354888]
[1738167995975,0.01553221,101980.0,101970.0,3.22654888]
[1738167996341,0.01553221,101980.0,101970.0,3.12654888]
[1738167996545,0.01553221,101980.0,101970.0,2.59881188]
[1738167996993,0.01553221,101980.0,101970.0,2.08631687]
[1738167997417,0.01553221,101980.0,101970.0,2.08635687]
[1738167997620,0.01553221,101980.0,101970.0,2.23635687]
[1738167998030,0.01553221,101980.0,101970.0,2.18805687]
[1738167999312,0.01553221,101980.0,101970.0,1.17572102]
[1738167999529,0.01553221,101980.0,101970.0,0.82624516]
[1738167999751,0.09833221,101980.0,101970.0,0.562202]
[1738168000706,0.09833221,101980.0,101970.0,0.712202]
[1738168000927,0.21598356,101980.0,101970.0,0.3226]
[1738168001178,0.14713,101950.0,101940.0,0.00177883]
[1738168001373,0.22505628,101950.0,101940.0,0.00177883]
[1738168001721,0.32107316,101950.0,101940.0,0.00177883]
[1738168002374,0.0767,101950.0,101940.0,0.00177883]
[1738168002580,0.22383,101950.0,101940.0,0.00277883]
[1738168002793,0.22383,101950.0,101940.0,0.00177883]
[1738168003285,0.24383,101950.0,101940.0,0.00177883]
[1738168004769,0.24483,101950.0,101940.0,0.00277883]
[1738168006376,0.4111235,101950.0,101940.0,0.00277883]
[1738168007480,0.66836666,101950.0,101940.0,0.00277883]
[1738168007688,0.64836666,101950.0,101940.0,0.00277883]
[1738168008346,1.03336666,101950.0,101940.0,8.3e-07]
[1738168009191,0.384045,101940.0,101930.0,0.00029883]
[1738168009418,0.63758166,101940.0,101930.0,0.00029883]
[1738168009837,0.66758166,101940.0,101930.0,0.00029883]
[1738168010052,0.64758166,101940.0,101930.0,0.00029883]
[1738168010457,0.65058166,101940.0,101930.0,0.00029883]
[1738168011900,0.65758166,101940.0,101930.0,0.00129883]
[1738168012519,0.64758166,101940.0,101930.0,0.00129883]
[1738168012725,0.50128816,101940.0,101930.0,0.00129883]
[1738168013127,0.5110059,101940.0,101930.0,0.00129883]
[1738168013765,0.4910059,101940.0,101930.0,0.00129883]
[1738168013974,0.16686274,101940.0,101930.0,0.00129883]
[1738168015880,0.16686274,101940.0,101930.0,0.24845783]
[1738168016087,0.01971774,101940.0,101930.0,0.24845783]
[1738168016298,0.16686274,101940.0,101930.0,0.24845783]
[1738168016714,0.16686274,101940.0,101930.0,0.10129883]
[1738168016884,0.16386274,101940.0,101930.0,0.10129883]
[1738168017092,0.16386274,101940.0,101930.0,0.24845783]
[1738168017494,0.16386274,101940.0,101930.0,0.10129883]
[1738168018196,0.16386274,101940.0,101930.0,0.24845783]
[1738168018462,0.15786274,101940.0,101930.0,0.24745783]
[1738168018874,0.15986274,101940.0,101930.0,0.24745783]
[1738168019216,0.01271774,101940.0,101930.0,0.24745783]
[1738168019929,0.15986274,101940.0,101930.0,0.24745783]
[1738168020153,0.15986274,101940.0,101930.0,0.10029883]
[1738168020356,0.15986274,101940.0,101930.0,0.24745783]
[1738168021942,0.32738245,101940.0,101930.0,0.00029883]
[1738168022146,0.32615624,101940.0,101930.0,0.00029883]
[1738168022982,0.15986274,101940.0,101930.0,0.00029883]
[1738168023133,0.16108914,101940.0,101930.0,0.00029883]
[1738168025810,0.27200295,101940.0,101930.0,0.00029883]
[1738168026015,0.15962913,101940.0,101930.0,0.00029883]
[1738168026155,0.16085553,101940.0,101930.0,0.00029883]
[1738168027432,0.18048281,101940.0,101930.0,0.00029883]
[1738168027689,0.47083978,101940.0,101930.0,0.00029883]
[1738168027901,0.64961338,101940.0,101930.0,0.00029883]
[1738168028073,0.76052719,101940.0,101930.0,0.00029883]
[1738168028334,0.64961338,101940.0,101930.0,0.00029883]
[1738168030503,0.147159,101930.0,101920.0,0.00025146]
[1738168030708,0.14838552,101930.0,101920.0,0.00029979]
[1738168032065,0.14838552,101930.0,101920.0,0.00129979]
[1738168032830,0.35654249,101930.0,101920.0,0.00129979]
[1738168033036,0.35531597,101930.0,101920.0,0.00129979]
[1738168033240,0.36531597,101930.0,101920.0,0.00129979]
[1738168033484,0.36531597,101930.0,101920.0,0.00029979]
[1738168033834,0.36731597,101930.0,101920.0,0.00029979]
[1738168034230,0.36831597,101930.0,101920.0,0.00029979]
[1738168034640,0.36731597,101930.0,101920.0,0.00029979]
[1738168035515,0.37231597,101930.0,101920.0,0.00029979]
[1738168037072,0.41981597,101930.0,101920.0,0.00029979]
[1738168037691,0.43981597,101930.0,101920.0,0.00029979]
[1738168038607,0.51791597,101930.0,101920.0,0.00029979]
[1738168039550,0.51805837,101930.0,101920.0,0.00029979]
[1738168040643,0.38245837,101930.0,101920.0,0.00029979]
[1738168042398,0.27154456,101930.0,101920.0,0.00029979]
[1738168043442,0.38245837,101930.0,101920.0,0.00029979]
[1738168046667,0.70711637,101930.0,101920.0,0.00029979]
[1738168046867,0.68115837,101930.0,101920.0,0.00029979]
[1738168047793,0.76871191,101930.0,101920.0,0.00029979]
[1738168048198,0.74571191,101930.0,101920.0,0.00029979]
[1738168049207,0.60001191,101930.0,101920.0,0.00029979]
[1738168049420,0.62001191,101930.0,101920.0,0.00029979]
[1738168049644,0.36245837,101930.0,101920.0,0.00029979]
[1738168049884,0.1543014,101930.0,101920.0,0.14747379]
[1738168050021,0.1543014,101930.0,101920.0,0.22487379]
[1738168050219,0.1543014,101930.0,101920.0,0.07769979]
[1738168050871,0.1543014,101930.0,101920.0,0.32487379]
[1738168053062,0.1543014,101930.0,101920.0,0.17769979]
[1738168053265,0.15552779,101930.0,101920.0,0.07769979]
[1738168053447,0.15552779,101930.0,101920.0,0.00029979]
[1738168056802,0.2664416,101930.0,101920.0,0.00029979]
[1738168057007,0.1543014,101930.0,101920.0,0.00029979]
[1738168057215,0.15552788,101930.0,101920.0,0.00029979]
[1738168057414,0.26644169,101930.0,101920.0,0.00029979]
[1738168057617,0.36245837,101930.0,101920.0,0.00029979]
[1738168058385,0.1543014,101930.0,101920.0,0.00029979]
[1738168058588,0.1555279,101930.0,101920.0,0.08229979]
[1738168058811,0.1543014,101930.0,101920.0,0.08229979]
[1738168059756,0.15552787,101930.0,101920.0,0.08229979]
[1738168060428,0.0071424,101930.0,101920.0,0.68815676]
[1738168060605,0.0071424,101930.0,101920.0,0.83533076]
[1738168060834,0.0071424,101930.0,101920.0,0.86591446]
[1738168061444,0.0051424,101930.0,101920.0,0.83533076]
[1738168061819,0.0011424,101930.0,101920.0,0.83533076]
[1738168062054,0.0031424,101930.0,101920.0,0.83533076]
[1738168064233,0.15152795,101930.0,101920.0,0.00029979]
[1738168064698,0.26244176,101930.0,101920.0,0.00029979]
[1738168064901,0.26121521,101930.0,101920.0,0.00029979]
[1738168065102,0.1503014,101930.0,101920.0,0.00029979]
[1738168065303,0.15152795,101930.0,101920.0,0.00029979]
[1738168065912,0.35845837,101930.0,101920.0,0.00029979]
[1738168068307,0.37776947,101930.0,101920.0,0.00029979]
[1738168068990,0.38742172,101930.0,101920.0,0.00029979]
[1738168070557,0.27650791,101930.0,101920.0,0.00029979]
[1738168072635,0.52342172,101930.0,101920.0,0.00029979]
[1738168075077,0.27650791,101930.0,101920.0,0.00029979]
[1738168075498,0.38742172,101930.0,101920.0,0.00029979]
[1738168076002,0.47530285,101930.0,101920.0,0.00029979]
[1738168077372,0.48530285,101930.0,101920.0,0.00029979]
[1738168079087,0.36438904,101930.0,101920.0,0.00029979]
[1738168079769,0.37438904,101930.0,101920.0,0.00029979]
[1738168080809,0.48530285,101930.0,101920.0,0.00029979]
[1738168083153,0.80780285,101930.0,101920.0,0.00029979]
[1738168084368,0.82780285,101930.0,101920.0,0.00029979]
[1738168085248,1.00080285,101930.0,101920.0,0.00029979]
[1738168085467,1.18834715,101930.0,101920.0,7.9e-07]
[1738168085682,1.09690285,101930.0,101920.0,7.9e-07]
[1738168085892,1.10308285,101930.0,101920.0,7.9e-07]
[1738168086113,0.84306904,101930.0,101920.0,7.9e-07]
[1738168086591,0.57651478,101930.0,101920.0,7.9e-07]
[1738168086792,0.57451478,101930.0,101920.0,0.04540079]
[1738168087009,0.48663365,101930.0,101920.0,0.04540079]
[1738168087219,0.48563365,101930.0,101920.0,0.04540079]
[1738168087427,0.49363365,101930.0,101920.0,0.04640079]
[1738168087666,0.58769681,101930.0,101920.0,0.00100079]
[1738168087877,0.87861062,101930.0,101920.0,0.00100079]
[1738168088100,0.87061062,101930.0,101920.0,7.9e-07]
[1738168088313,0.87561062,101930.0,101920.0,0.00129962]
[1738168089124,0.87861062,101930.0,101920.0,0.00129962]
[1738168092439,0.96665354,101930.0,101920.0,0.00129962]
[1738168095531,0.84573973,101930.0,101920.0,0.00129962]
[1738168097305,0.82573973,101930.0,101920.0,0.00129962]
[1738168097952,0.84573973,101930.0,101920.0,0.00129962]
[1738168099768,0.82573973,101930.0,101920.0,0.00129962]
[1738168101125,0.84573973,101930.0,101920.0,0.00129962]
[1738168102148,0.82573973,101930.0,101920.0,0.00129962]
[1738168102970,0.84573973,101930.0,101920.0,0.00129962]
[1738168104047,0.82573973,101930.0,101920.0,0.00129962]
[1738168104671,0.84573973,101930.0,101920.0,0.00129962]
[1738168105121,0.82573973,101930.0,101920.0,0.00129962]
[1738168105334,0.84573973,101930.0,101920.0,0.00129962]
[1738168106080,0.95665354,101930.0,101920.0,0.00129962]
[1738168106286,0.87861062,101930.0,101920.0,0.00129962]
[1738168108875,0.96665354,101930.0,101920.0,0.00129962]
[1738168111480,0.87861062,101930.0,101920.0,0.00129962]
[1738168111711,0.90804468,101930.0,101920.0,0.00129962]
[1738168111919,0.87861062,101930.0,101920.0,0.00129962]
[1738168112131,0.89161062,101930.0,101920.0,0.00129962]
[1738168112335,0.93891062,101930.0,101920.0,0.00129962]
[1738168112923,0.61641062,101930.0,101920.0,0.00129962]
[1738168113165,0.76876738,101930.0,101920.0,0.00129962]
[1738168114436,0.26810181,101910.0,101900.0,0.00029883]
[1738168114673,0.47625878,101910.0,101900.0,0.00034716]
[1738168115081,0.35534497,101910.0,101900.0,0.00034716]
[1738168115293,0.24443116,101910.0,101900.0,0.00034716]
[1738168115933,0.35834497,101910.0,101900.0,0.00034716]
[1738168116383,0.36834497,101910.0,101900.0,0.00034716]
[1738168116689,0.35834497,101910.0,101900.0,0.00034716]
[1738168116893,0.24743116,101910.0,101900.0,0.00034716]
[1738168117103,0.25443116,101910.0,101900.0,0.00134716]
[1738168117314,0.36534497,101910.0,101900.0,0.00134716]
[1738168118761,0.68784497,101910.0,101900.0,0.00134716]
[1738168118971,0.69766149,101910.0,101900.0,0.00134716]
[1738168119930,0.70766149,101910.0,101900.0,0.00134716]
[1738168120335,0.7958417,101910.0,101900.0,0.00134716]
[1738168121176,0.81513321,101910.0,101900.0,0.00134716]
[1738168121763,0.80513321,101910.0,101900.0,0.00134716]
[1738168121979,0.6942194,101910.0,101900.0,0.00134716]
[1738168123308,0.80513321,101910.0,101900.0,0.00134716]
[1738168123513,0.81513321,101910.0,101900.0,0.00134716]
[1738168125358,1.12295704,101910.0,101900.0,0.00134716]
[1738168125572,1.14595704,101910.0,101900.0,0.00134716]
[1738168126233,1.00813321,101910.0,101900.0,0.00134716]
[1738168126434,1.09904702,101910.0,101900.0,0.00134716]
[1738168126852,0.98813321,101910.0,101900.0,0.00134716]
[1738168127733,0.95513321,101910.0,101900.0,0.00134716]
[1738168127936,0.8442194,101910.0,101900.0,0.00134716]
[1738168128156,0.95513321,101910.0,101900.0,0.00134716]
[1738168128566,0.96513321,101910.0,101900.0,0.00134716]
[1738168129200,0.876953,101910.0,101900.0,0.00134716]
[1738168132740,0.899953,101910.0,101900.0,0.00134716]
[1738168133780,1.003153,101910.0,101900.0,0.00134716]
[1738168133911,0.899953,101910.0,101900.0,0.00134716]
[1738168134740,0.876953,101910.0,101900.0,0.00134716]
[1738168136004,0.75289909,101910.0,101900.0,0.00134716]
[1738168136222,0.9966129,101910.0,101900.0,0.00134716]
[1738168136436,0.350203,101900.0,101890.0,0.00029883]
[1738168136646,0.55835997,101900.0,101890.0,0.00029883]
[1738168137081,0.60575997,101900.0,101890.0,0.00029883]
[1738168137723,0.61075997,101900.0,101890.0,0.00029883]
[1738168138141,0.60675997,101900.0,101890.0,0.00029883]
[1738168138354,0.61075997,101900.0,101890.0,0.00029883]
[1738168138769,0.60675997,101900.0,101890.0,0.00029883]
[1738168138970,0.66493173,101900.0,101890.0,0.00129883]
[1738168139694,0.61275997,101900.0,101890.0,0.00129883]
[1738168139910,0.64475997,101900.0,101890.0,0.00129883]
[1738168140328,0.65475997,101900.0,101890.0,0.00129883]
[1738168140659,0.64475997,101900.0,101890.0,0.00129883]
[1738168140868,0.65475997,101900.0,101890.0,0.00129883]
[1738168141423,0.57735997,101900.0,101890.0,0.00129883]
[1738168142513,0.54735997,101900.0,101890.0,0.00129883]
[1738168143894,0.297232,101880.0,101870.0,0.0495]
[1738168144247,0.50538897,101880.0,101870.0,0.04954834]
[1738168144783,0.50538897,101880.0,101870.0,4.834e-05]
[1738168145212,0.52538897,101880.0,101870.0,4.834e-05]
[1738168145677,0.64630278,101880.0,101870.0,4.834e-05]
[1738168146017,0.53538897,101880.0,101870.0,4.834e-05]
[1738168146753,0.53538897,101880.0,101870.0,0.00019064]
[1738168147152,0.64630278,101880.0,101870.0,0.00019064]
[1738168147493,0.67030278,101880.0,101870.0,0.00019064]
[1738168147702,0.67430278,101880.0,101870.0,0.00019064]
[1738168148075,0.65138818,101880.0,101870.0,0.00019064]
[1738168148322,0.76230199,101880.0,101870.0,0.00019064]
[1738168148730,0.65138818,101880.0,101870.0,0.00019064]
[1738168149640,0.6611958,101880.0,101870.0,0.00019064]
[1738168151550,0.57319659,101880.0,101870.0,0.00019064]
[1738168151760,0.59272162,101880.0,101870.0,0.00019064]
[1738168152885,0.58272162,101880.0,101870.0,0.00019064]
[1738168153387,0.44880781,101880.0,101870.0,0.00019064]
[1738168154301,0.55959157,101880.0,101870.0,0.00019064]
[1738168154877,0.58959157,101880.0,101870.0,0.00019064]
[1738168156140,0.58959157,101880.0,101870.0,0.08219064]
[1738168156141,0.30867776,101880.0,101870.0,0.08219064]
[1738168156577,0.41959157,101880.0,101870.0,0.08219064]
[1738168161787,0.30867776,101880.0,101870.0,0.08219064]
[1738168162230,0.19190957,101880.0,101870.0,0.27613664]
[1738168162439,0.16203962,101880.0,101870.0,0.27613664]
[1738168165042,0.01480762,101880.0,101870.0,0.27613664]
[1738168165251,0.16203962,101880.0,101870.0,0.27613664]
[1738168166521,0.01480762,101880.0,101870.0,0.27613664]
[1738168166927,0.16203962,101880.0,101870.0,0.27613664]
[1738168167151,0.01480762,101880.0,101870.0,0.27613664]
[1738168167363,0.16203962,101880.0,101870.0,0.27613664]
[1738168167962,0.16326662,101880.0,101870.0,0.12889064]
[1738168168169,0.27418043,101880.0,101870.0,0.12889064]
[1738168168394,0.27295343,101880.0,101870.0,0.12889064]
[1738168170055,0.37019659,101880.0,101870.0,0.12889064]
[1738168170256,0.37019659,101880.0,101870.0,0.04689064]
[1738168171019,0.40019659,101880.0,101870.0,0.04689064]
[1738168171603,0.40049563,101880.0,101870.0,0.04689064]
[1738168172542,0.28958182,101880.0,101870.0,0.04689064]
[1738168172951,0.28958182,101880.0,101870.0,0.12569064]
[1738168173572,0.40049563,101880.0,101870.0,0.12569064]
[1738168174381,0.28958182,101880.0,101870.0,0.12569064]
[1738168174978,0.40049563,101880.0,101870.0,0.12569064]
[1738168175179,0.28958182,101880.0,101870.0,0.12569064]
[1738168176394,0.40049563,101880.0,101870.0,0.00019064]
[1738168178242,0.28958182,101880.0,101870.0,0.00019064]
[1738168182298,0.19233866,101880.0,101870.0,0.00019064]
[1738168182531,0.19356575,101880.0,101870.0,0.08099064]
[1738168189047,0.40172272,101880.0,101870.0,0.00019064]
[1738168189259,0.40049563,101880.0,101870.0,0.00019064]
[1738168190550,0.4353605,101880.0,101870.0,0.00019064]
[1738168192345,0.36247116,101880.0,101870.0,0.00019064]
[1738168192777,0.40063748,101880.0,101870.0,0.00019064]
[1738168195828,0.48863669,101880.0,101870.0,0.00019064]
[1738168197137,0.37758103,101880.0,101870.0,0.00019064]
[1738168198103,0.28033787,101880.0,101870.0,0.00019064]
[1738168198322,0.28033787,101880.0,101870.0,0.07869064]
[1738168201716,0.48863669,101880.0,101870.0,0.00019064]
[1738168201958,1.00229235,101880.0,101870.0,0.00019064]
[1738168202176,1.13319314,101880.0,101870.0,0.00019064]
[1738168202600,1.02213748,101880.0,101870.0,0.00019064]
[1738168203000,1.05513748,101880.0,101870.0,0.00019064]
[1738168204078,1.2335499,101880.0,101870.0,0.00019064]